[Event "Top 12 Féminin 2026"]
[Site "Asnières-sur-Seine, France"]
[Date "2026.05.14"]
[Round "2.16"]
[White "Djedidi, Rayhana"]
[Black "Marcellier, Lucie"]
[Result "0-1"]
[TimeControl "1h30 / 40 moves + 30m + 30sec/move"]
[WhiteTitle "-"]
[BlackTitle "-"]
[WhiteFideId "-"]
[BlackFideId "-"]
[WhiteElo "1541"]
[BlackElo "1885"]

1. d4 {[%clk 01:30:57]} {[%emt 00:00:03]} d5 {[%clk 01:30:54]} {[%emt
00:00:06]} 2. c4 {[%clk 01:31:21]} {[%emt 00:00:07]} dxc4 {[%clk 01:31:17]}
{[%emt 00:00:06]} 3. Nf3 {[%clk 01:31:43]} {[%emt 00:00:08]} Nf6 {[%clk
01:31:40]} {[%emt 00:00:07]} 4. e3 {[%clk 01:32:05]} {[%emt 00:00:08]} Bg4
{[%clk 01:31:49]} {[%emt 00:00:21]} 5. Bxc4 {[%clk 01:30:43]} {[%emt 00:01:53]}
e6 {[%clk 01:32:11]} {[%emt 00:00:09]} 6. O-O {[%clk 01:31:04]} {[%emt
00:00:08]} Be7 {[%clk 01:29:49]} {[%emt 00:02:52]} 7. Nc3 {[%clk 01:31:24]}
{[%emt 00:00:10]} O-O {[%clk 01:28:27]} {[%emt 00:01:52]} 8. Qe2 {[%clk
01:25:35]} {[%emt 00:06:19]} c5 {[%clk 01:21:25]} {[%emt 00:07:32]} 9. dxc5
{[%clk 01:21:25]} {[%emt 00:04:40]} Bxc5 {[%clk 01:21:26]} {[%emt 00:00:29]} 10.
e4 {[%clk 01:21:19]} {[%emt 00:00:36]} Nc6 {[%clk 01:20:28]} {[%emt 00:01:28]}
11. Be3 {[%clk 01:18:29]} {[%emt 00:03:20]} Bb4 {[%clk 01:13:57]} {[%emt
00:07:01]} 12. h3 {[%clk 01:10:15]} {[%emt 00:08:44]} Bxf3 {[%clk 01:03:15]}
{[%emt 00:11:12]} 13. Qxf3 {[%clk 01:10:31]} {[%emt 00:00:13]} Ne5 {[%emt
00:01:26]} 14. Qe2 {[%clk 01:10:02]} {[%emt 00:15:26]} Nxc4 15. Qxc4 {[%emt
00:01:17]} Qe7 {[%clk 00:47:55]} {[%emt 00:00:11]} 16. Rac1 {[%clk 00:53:33]}
{[%emt 00:16:59]} Rac8 {[%clk 00:45:20]} {[%emt 00:03:05]} 17. Qb3 {[%clk
00:51:13]} {[%emt 00:02:49]} a6 {[%clk 00:42:53]} {[%emt 00:02:58]} 18. e5
{[%clk 00:47:40]} {[%emt 00:04:02]} Nd7 {[%clk 00:37:11]} {[%emt 00:06:12]} 19.
f4 {[%clk 00:40:42]} {[%emt 00:07:28]} Bc5 {[%clk 00:23:39]} {[%emt 00:14:02]}
20. Ne4 {[%clk 00:38:19]} {[%emt 00:02:52]} b6 {[%clk 00:20:40]} {[%emt
00:03:30]} 21. Rfd1 {[%clk 00:29:43]} {[%emt 00:09:05]} f6 {[%clk 00:14:05]}
{[%emt 00:07:05]} 22. Nd6 {[%clk 00:20:15]} {[%emt 00:09:58]} Rc6 {[%clk
00:12:04]} {[%emt 00:02:32]} 23. Bxc5 {[%clk 00:11:53]} {[%emt 00:08:52]} Nxc5
{[%clk 00:08:07]} {[%emt 00:04:27]} 24. Qe3 {[%clk 00:12:06]} {[%emt 00:00:16]}
fxe5 {[%clk 00:07:47]} {[%emt 00:00:51]} 25. fxe5 {[%clk 00:10:40]} {[%emt
00:01:56]} a5 {[%clk 00:07:16]} {[%emt 00:01:01]} 26. a3 {[%clk 00:10:14]}
{[%emt 00:00:57]} a4 {[%clk 00:06:34]} {[%emt 00:01:12]} 27. Rc4 {[%clk
00:08:52]} {[%emt 00:01:49]} Rd8 {[%clk 00:05:49]} {[%emt 00:01:16]} 28. Rf1
{[%clk 00:07:12]} {[%emt 00:02:10]} Rcxd6 {[%clk 00:03:36]} {[%emt 00:02:44]}
29. exd6 {[%clk 00:07:19]} {[%emt 00:00:22]} Qxd6 {[%clk 00:03:57]} {[%emt
00:00:09]} 30. Qf4 {[%clk 00:06:27]} {[%emt 00:01:20]} Qe7 {[%clk 00:03:21]}
{[%emt 00:01:08]} 31. Rd4 {[%clk 00:05:50]} {[%emt 00:01:06]} Ra8 {[%clk
00:03:04]} {[%emt 00:00:48]} 32. Qf3 {[%clk 00:04:58]} {[%emt 00:01:22]} Re8
{[%clk 00:03:00]} {[%emt 00:00:35]} 33. Rf4 {[%clk 00:04:32]} {[%emt 00:00:53]}
Nd7 {[%clk 00:02:20]} {[%emt 00:01:12]} 34. Rf7 {[%clk 00:03:39]} {[%emt
00:01:23]} Ne5 {[%clk 00:02:10]} {[%emt 00:00:39]} 35. Rxe7 {[%clk 00:03:08]}
{[%emt 00:01:01]} Nxf3+ {[%clk 00:02:29]} {[%emt 00:00:12]} 36. Rxf3 {[%clk
00:03:28]} {[%emt 00:00:09]} Rxe7 {[%clk 00:02:54]} {[%emt 00:00:06]} 37. Kf2
{[%clk 00:03:45]} {[%emt 00:00:12]} Rf7 {[%clk 00:01:30]} {[%emt 00:01:54]} 38.
Rxf7 {[%clk 00:02:29]} {[%emt 00:01:47]} Kxf7 {[%clk 00:01:55]} {[%emt
00:00:05]} 39. Kf3 {[%clk 00:02:10]} {[%emt 00:00:49]} e5 {[%clk 00:01:37]}
{[%emt 00:00:49]} 40. g4 {[%clk 00:02:05]} {[%emt 00:00:34]} g5 {[%clk
00:00:52]} {[%emt 00:01:15]} 41. Ke3 {[%clk 00:02:03]} {[%emt 00:00:31]} Ke6
{[%clk 00:01:02]} {[%emt 00:00:20]} 42. Ke4 {[%clk 00:02:21]} {[%emt 00:00:12]}
h6 {[%clk 00:01:21]} {[%emt 00:00:12]} 43. Ke3 {[%clk 00:01:24]} {[%emt
00:01:28]} Kd5 {[%clk 00:01:38]} {[%emt 00:00:12]} 44. Kd3 {[%clk 00:01:35]}
{[%emt 00:00:19]} e4+ {[%clk 00:01:51]} {[%emt 00:00:17]} 0-1

[Event "Top 12 Féminin 2026"]
[Site "Asnières-sur-Seine, France"]
[Date "2026.05.15"]
[Round "3.1"]
[White "Zatonskih, Anna"]
[Black "Kosteniuk, Alexandra"]
[Result "0-1"]
[TimeControl "1h30 / 40 moves + 30m + 30sec/move"]
[WhiteTitle "IM"]
[BlackTitle "GM"]
[WhiteFideId "-"]
[BlackFideId "-"]
[WhiteElo "2317"]
[BlackElo "2491"]

1. d4 {[%clk 01:29:14]} {[%emt 00:01:46]} Nf6 {[%clk 01:30:54]} {[%emt
00:00:06]} 2. c4 {[%clk 01:29:30]} {[%emt 00:00:14]} e6 {[%clk 01:31:20]}
{[%emt 00:00:04]} 3. Nf3 {[%clk 01:29:26]} {[%emt 00:00:34]} d5 {[%clk
01:31:45]} {[%emt 00:00:05]} 4. Nc3 {[%clk 01:29:04]} {[%emt 00:00:51]} Bb4
{[%clk 01:32:10]} {[%emt 00:00:05]} 5. Qb3 {[%clk 01:25:12]} {[%emt 00:04:22]}
c5 {[%clk 01:32:14]} {[%emt 00:00:26]} 6. dxc5 {[%clk 01:23:47]} {[%emt
00:01:56]} Na6 {[%clk 01:32:30]} {[%emt 00:00:14]} 7. a3 {[%clk 01:20:38]}
{[%emt 00:03:39]} Bxc3+ {[%clk 01:24:39]} {[%emt 00:08:20]} 8. Qxc3 {[%clk
01:20:48]} {[%emt 00:00:20]} Nxc5 {[%clk 01:24:59]} {[%emt 00:00:10]} 9. cxd5
{[%clk 01:14:08]} {[%emt 00:07:11]} Qxd5 {[%clk 01:20:37]} {[%emt 00:04:51]} 10.
Be3 {[%clk 01:08:21]} {[%emt 00:06:17]} Nce4 {[%clk 01:17:56]} {[%emt
00:03:11]} 11. Qe5 {[%clk 01:03:26]} {[%emt 00:05:24]} Qxe5 {[%clk 01:13:23]}
{[%emt 00:05:03]} 12. Nxe5 {[%clk 01:03:43]} {[%emt 00:00:14]} Nd5 {[%clk
01:13:49]} {[%emt 00:00:04]} 13. Bc1 {[%clk 01:03:40]} {[%emt 00:00:32]} Nc5
{[%clk 01:14:02]} {[%emt 00:00:17]} 14. Rb1 {[%clk 00:47:07]} {[%emt 00:17:03]}
f6 {[%clk 00:58:45]} {[%emt 00:15:48]} 15. Nc4 {[%clk 00:46:15]} {[%emt
00:01:21]} e5 {[%clk 00:55:46]} {[%emt 00:03:28]} 16. Nd6+ {[%clk 00:33:33]}
{[%emt 00:13:12]} Ke7 {[%clk 00:55:35]} {[%emt 00:00:42]} 17. Nxc8+ {[%clk
00:33:59]} {[%emt 00:00:05]} Raxc8 {[%clk 00:55:35]} {[%emt 00:00:29]} 18. g3
{[%clk 00:34:21]} {[%emt 00:00:08]} Nb3 {[%clk 00:51:40]} {[%emt 00:04:25]} 19.
Bg2 {[%clk 00:25:12]} {[%emt 00:09:39]} Rc5 {[%clk 00:48:19]} {[%emt 00:03:52]}
20. O-O {[%clk 00:22:09]} {[%emt 00:03:33]} Rhc8 {[%clk 00:48:30]} {[%emt
00:00:19]} 21. Rd1 {[%clk 00:17:15]} {[%emt 00:05:23]} Nxc1 {[%clk 00:45:00]}
{[%emt 00:04:00]} 22. Rxd5 {[%clk 00:14:03]} {[%emt 00:03:43]} Nxe2+ {[%clk
00:42:26]} {[%emt 00:03:04]} 23. Kf1 {[%clk 00:14:32]} Nd4 {[%clk 00:38:06]}
{[%emt 00:04:50]} 24. Rxc5 {[%clk 00:14:55]} {[%emt 00:00:06]} Rxc5 {[%clk
00:38:22]} {[%emt 00:00:15]} 25. Bxb7 {[%clk 00:15:20]} {[%emt 00:00:05]} f5
{[%clk 00:36:45]} {[%emt 00:02:07]} 26. b4 {[%clk 00:12:49]} {[%emt 00:03:01]}
Rc2 {[%clk 00:28:54]} {[%emt 00:08:20]} 27. a4 {[%clk 00:12:57]} {[%emt
00:00:22]} e4 {[%clk 00:29:19]} {[%emt 00:00:05]} 28. a5 {[%clk 00:09:35]}
{[%emt 00:03:53]} Nf3 {[%clk 00:29:29]} {[%emt 00:00:20]} 29. Kg2 {[%clk
00:07:14]} {[%emt 00:02:50]} Nd2 {[%clk 00:29:37]} {[%emt 00:00:21]} 30. Re1
{[%clk 00:04:41]} {[%emt 00:03:03]} Rb2 {[%clk 00:29:56]} {[%emt 00:00:11]} 31.
Re2 {[%clk 00:04:41]} {[%emt 00:00:30]} Rxb4 {[%clk 00:30:14]} {[%emt
00:00:12]} 32. Rxd2 {[%clk 00:03:48]} {[%emt 00:01:23]} Rxb7 {[%clk 00:30:42]}
{[%emt 00:00:02]} 33. g4 {[%clk 00:01:58]} {[%emt 00:02:21]} Rb5 {[%clk
00:30:47]} {[%emt 00:00:25]} 34. gxf5 {[%clk 00:01:17]} {[%emt 00:01:10]} Rxa5
{[%clk 00:31:12]} {[%emt 00:00:05]} 35. Rd4 {[%clk 00:01:34]} {[%emt 00:00:12]}
Re5 {[%clk 00:31:23]} {[%emt 00:00:20]} 36. Kg3 {[%clk 00:01:42]} {[%emt
00:00:22]} Rxf5 {[%clk 00:28:06]} {[%emt 00:03:46]} 37. Rxe4+ {[%clk 00:02:09]}
{[%emt 00:00:02]} Kd7 {[%clk 00:28:21]} {[%emt 00:00:15]} 38. f4 {[%clk
00:01:01]} {[%emt 00:01:39]} a5 {[%clk 00:28:30]} {[%emt 00:00:21]} 39. Rd4+
{[%clk 00:00:43]} {[%emt 00:00:48]} Kc6 {[%clk 00:28:24]} {[%emt 00:00:36]} 40.
Re4 {[%clk 00:00:42]} {[%emt 00:00:31]} Rf7 {[%clk 00:26:42]} {[%emt 00:02:12]}
41. Re6+ {[%clk 00:23:14]} {[%emt 00:07:58]} Kb5 {[%clk 00:56:41]} {[%emt
00:00:31]} 42. Re5+ {[%clk 00:21:32]} {[%emt 00:02:12]} Kb4 {[%clk 00:57:06]}
{[%emt 00:00:04]} 43. Re4+ {[%clk 00:18:27]} {[%emt 00:03:35]} Kc3 {[%clk
00:56:34]} {[%emt 00:01:02]} 44. Re8 {[%emt 00:05:58]} Ra7 {[%clk 00:56:46]} 45.
Rc8+ {[%clk 00:12:43]} {[%emt 00:01:04]} Kd4 {[%clk 00:57:06]} {[%emt
00:00:10]} 46. Rd8+ {[%clk 00:13:08]} {[%emt 00:00:05]} Kc5 {[%clk 00:57:09]}
{[%emt 00:00:27]} 47. Rc8+ {[%clk 00:13:22]} {[%emt 00:00:16]} Kd6 {[%clk
00:57:29]} {[%emt 00:00:09]} 48. Rd8+ {[%clk 00:13:41]} {[%emt 00:00:12]} Ke7
{[%clk 00:57:43]} {[%emt 00:00:16]} 49. Rd3 {[%clk 00:13:51]} {[%emt 00:00:20]}
a4 {[%clk 00:58:10]} {[%emt 00:00:04]} 50. Ra3 {[%clk 00:14:18]} {[%emt
00:00:02]} Kd6 {[%clk 00:58:32]} {[%emt 00:00:07]} 51. Kg4 {[%clk 00:14:35]}
{[%emt 00:00:13]} 0-1

[Event "Top 12 Féminin 2026"]
[Site "Asnières-sur-Seine, France"]
[Date "2026.05.15"]
[Round "3.2"]
[White "Cramling, Pia"]
[Black "Savina, Anastasia"]
[Result "1/2-1/2"]
[TimeControl "1h30 / 40 moves + 30m + 30sec/move"]
[WhiteTitle "GM"]
[BlackTitle "IM"]
[WhiteFideId "-"]
[BlackFideId "-"]
[WhiteElo "2384"]
[BlackElo "2344"]

1. d4 {[%clk 01:30:34]} {[%emt 00:00:24]} d5 {[%clk 01:30:13]} {[%emt
00:00:49]} 2. c4 {[%clk 01:30:21]} {[%emt 00:00:42]} e6 {[%clk 01:30:32]}
{[%emt 00:00:12]} 3. Nf3 {[%clk 01:30:32]} {[%emt 00:00:18]} Nf6 {[%clk
01:30:48]} {[%emt 00:00:14]} 4. Bg5 {[%clk 01:29:58]} {[%emt 00:01:04]} dxc4
{[%clk 01:29:39]} {[%emt 00:01:40]} 5. e4 {[%clk 01:27:37]} {[%emt 00:02:51]}
b5 {[%clk 01:29:11]} {[%emt 00:00:59]} 6. a4 {[%clk 01:24:10]} {[%emt
00:03:56]} c6 {[%clk 01:29:24]} {[%emt 00:00:17]} 7. Be2 {[%clk 01:23:05]}
{[%emt 00:01:35]} Nbd7 {[%clk 01:18:04]} {[%emt 00:11:51]} 8. O-O {[%clk
01:21:36]} {[%emt 00:01:58]} h6 {[%clk 01:09:19]} {[%emt 00:09:16]} 9. Bxf6
{[%clk 01:18:55]} {[%emt 00:03:11]} Nxf6 {[%clk 01:05:14]} {[%emt 00:04:35]} 10.
e5 {[%clk 01:06:07]} {[%emt 00:13:18]} Nd5 {[%clk 01:03:55]} {[%emt 00:01:49]}
11. b3 {[%clk 01:06:03]} {[%emt 00:00:34]} cxb3 {[%clk 00:54:20]} {[%emt
00:10:05]} 12. axb5 {[%clk 01:06:03]} {[%emt 00:00:30]} cxb5 {[%clk 00:53:30]}
{[%emt 00:01:20]} 13. Bxb5+ {[%clk 01:04:41]} {[%emt 00:01:51]} Bd7 {[%clk
00:53:56]} {[%emt 00:00:05]} 14. Qxb3 {[%clk 01:02:41]} {[%emt 00:02:30]} a5
{[%clk 00:36:19]} {[%emt 00:18:07]} 15. Nc3 {[%clk 00:56:08]} {[%emt 00:07:02]}
Nxc3 {[%clk 00:35:38]} {[%emt 00:01:12]} 16. Bxd7+ {[%clk 00:56:28]} {[%emt
00:00:10]} Qxd7 {[%clk 00:36:04]} {[%emt 00:00:04]} 17. Qxc3 {[%clk 00:56:49]}
{[%emt 00:00:09]} Qd5 {[%clk 00:34:16]} {[%emt 00:02:17]} 18. Qc2 {[%clk
00:29:02]} {[%emt 00:28:18]} Bb4 {[%clk 00:29:13]} {[%emt 00:05:33]} 19. Qa4+
{[%clk 00:29:21]} {[%emt 00:00:11]} Ke7 {[%clk 00:29:26]} {[%emt 00:00:17]} 20.
Ne1 {[%clk 00:29:16]} {[%emt 00:00:34]} Rhc8 {[%clk 00:12:42]} {[%emt
00:17:15]} 21. Nc2 {[%clk 00:28:41]} {[%emt 00:01:04]} Rab8 {[%clk 00:11:14]}
{[%emt 00:01:59]} 22. Rfd1 {[%clk 00:26:12]} {[%emt 00:02:57]} Qb5 {[%clk
00:03:55]} {[%emt 00:07:51]} 23. Qxb5 {[%clk 00:20:07]} {[%emt 00:06:35]} Rxb5
{[%clk 00:04:21]} {[%emt 00:00:04]} 24. Ne3 {[%clk 00:20:27]} {[%emt 00:00:08]}
Bc3 {[%clk 00:02:04]} {[%emt 00:02:49]} 25. Ra4 {[%clk 00:20:37]} {[%emt
00:00:20]} Rb4 {[%clk 00:01:18]} {[%emt 00:01:16]} 26. Rxa5 {[%clk 00:20:13]}
{[%emt 00:00:54]} Bxd4 {[%clk 00:01:08]} {[%emt 00:00:41]} 27. h3 {[%clk
00:11:26]} {[%emt 00:09:16]} Bb6 {[%clk 00:00:49]} {[%emt 00:00:50]} 28. Ra6
{[%clk 00:04:28]} {[%emt 00:07:27]} Rb5 {[%clk 00:00:33]} {[%emt 00:00:46]} 29.
Re1 {[%clk 00:02:53]} {[%emt 00:02:03]} Bd4 {[%clk 00:00:33]} {[%emt 00:00:31]}
30. Ra4 {[%clk 00:00:58]} {[%emt 00:02:25]} Bxe5 {[%clk 00:00:37]} {[%emt
00:00:26]} 31. Nc4 {[%clk 00:01:15]} {[%emt 00:00:12]} Bd4 {[%clk 00:00:34]}
{[%emt 00:00:34]} 32. Rd1 {[%clk 00:01:09]} {[%emt 00:00:35]} e5 {[%clk
00:00:32]} {[%emt 00:00:33]} 33. Re1 {[%clk 00:01:26]} {[%emt 00:00:12]} Rc6
{[%clk 00:00:33]} {[%emt 00:00:30]} 34. g3 {[%clk 00:01:16]} {[%emt 00:00:39]}
Rbc5 {[%clk 00:00:33]} {[%emt 00:00:31]} 35. Na5 {[%clk 00:01:09]} {[%emt
00:00:36]} Ra6 {[%clk 00:00:36]} {[%emt 00:00:29]} 36. Rxd4 {[%clk 00:01:25]}
{[%emt 00:00:14]} Raxa5 {[%clk 00:00:40]} {[%emt 00:00:26]} 37. Rd2 {[%clk
00:01:50]} {[%emt 00:00:04]} Rd5 {[%clk 00:00:34]} {[%emt 00:00:36]} 38. Rxd5
{[%clk 00:01:26]} {[%emt 00:00:55]} Rxd5 {[%clk 00:01:01]} {[%emt 00:00:03]} 39.
h4 {[%clk 00:00:48]} {[%emt 00:01:06]} f5 {[%clk 00:00:58]} {[%emt 00:00:33]}
40. Ra1 {[%clk 00:00:41]} {[%emt 00:00:37]} Rd6 {[%clk 00:00:39]} {[%emt
00:00:50]} 41. Kf1 {[%clk 00:00:33]} {[%emt 00:00:39]} Kf6 {[%clk 00:30:00]}
{[%emt 00:01:09]} 42. Ke2 {[%clk 00:30:47]} {[%emt 00:00:15]} Rb6 {[%clk
00:26:47]} {[%emt 00:03:44]} 43. Ra2 {[%clk 00:30:37]} {[%emt 00:00:40]} Kg6
{[%clk 00:24:51]} {[%emt 00:02:26]} 44. Kf3 {[%clk 00:28:51]} {[%emt 00:02:14]}
Rb3+ {[%clk 00:24:10]} {[%emt 00:01:12]} 45. Kg2 {[%clk 00:29:13]} {[%emt
00:00:07]} e4 {[%clk 00:23:29]} {[%emt 00:01:13]} 46. Ra5 {[%clk 00:23:54]}
{[%emt 00:05:49]} Rf3 {[%clk 00:22:07]} {[%emt 00:01:53]} 47. Ra7 {[%clk
00:23:26]} {[%emt 00:00:56]} Rd3 {[%clk 00:21:24]} {[%emt 00:01:13]} 48. Ra5
{[%clk 00:20:43]} {[%emt 00:03:13]} Rd2 {[%clk 00:21:26]} {[%emt 00:00:28]} 49.
Re5 {[%clk 00:17:43]} {[%emt 00:03:29]} Kf6 {[%clk 00:20:57]} {[%emt 00:01:00]}
50. Re8 {[%clk 00:18:09]} {[%emt 00:00:05]} g5 {[%clk 00:20:54]} {[%emt
00:00:33]} 51. hxg5+ {[%clk 00:18:08]} {[%emt 00:00:30]} hxg5 {[%clk 00:21:14]}
{[%emt 00:00:10]} 52. g4 {[%clk 00:17:31]} {[%emt 00:01:07]} fxg4 {[%clk
00:21:11]} {[%emt 00:00:33]} 1/2-1/2

[Event "Top 12 Féminin 2026"]
[Site "Asnières-sur-Seine, France"]
[Date "2026.05.15"]
[Round "3.3"]
[White "Stoll, Lucia"]
[Black "Skripchenko, Almira"]
[Result "0-1"]
[TimeControl "1h30 / 40 moves + 30m + 30sec/move"]
[WhiteTitle "-"]
[BlackTitle "IM"]
[WhiteFideId "-"]
[BlackFideId "-"]
[WhiteElo "2103"]
[BlackElo "2367"]

1. e4 {[%clk 01:30:32]} {[%emt 00:00:28]} g6 {[%clk 01:29:10]} {[%emt
00:01:50]} 2. d4 {[%clk 01:30:54]} {[%emt 00:00:08]} Bg7 {[%clk 01:29:35]}
{[%emt 00:00:05]} 3. Nc3 {[%clk 01:31:13]} {[%emt 00:00:11]} d6 {[%clk
01:29:55]} {[%emt 00:00:10]} 4. f4 {[%clk 01:29:47]} {[%emt 00:01:57]} a6
{[%clk 01:23:10]} {[%emt 00:07:15]} 5. Nf3 {[%clk 01:29:16]} {[%emt 00:01:01]}
b5 {[%clk 01:23:20]} {[%emt 00:00:19]} 6. Bd3 {[%clk 01:29:27]} {[%emt
00:00:19]} Bb7 {[%clk 01:23:43]} {[%emt 00:00:08]} 7. a4 {[%clk 01:29:14]}
{[%emt 00:00:43]} b4 {[%clk 01:23:49]} {[%emt 00:00:24]} 8. Ne2 {[%clk
01:29:38]} {[%emt 00:00:06]} Nf6 {[%clk 01:21:09]} {[%emt 00:03:09]} 9. e5
{[%clk 01:26:20]} {[%emt 00:03:48]} Nfd7 {[%clk 01:18:01]} {[%emt 00:03:38]} 10.
e6 {[%clk 01:01:37]} {[%emt 00:25:14]} fxe6 {[%clk 01:16:06]} {[%emt 00:02:24]}
11. Ng5 {[%clk 01:01:16]} {[%emt 00:00:52]} Nf8 {[%clk 01:16:29]} {[%emt
00:00:07]} 12. O-O {[%clk 00:48:27]} {[%emt 00:13:20]} Nbd7 {[%clk 01:00:25]}
{[%emt 00:16:33]} 13. f5 {[%clk 00:37:54]} {[%emt 00:11:04]} exf5 {[%clk
00:58:25]} {[%emt 00:02:30]} 14. Bxf5 {[%clk 00:36:23]} {[%emt 00:02:01]} gxf5
{[%clk 00:47:23]} {[%emt 00:11:32]} 15. Rxf5 {[%clk 00:25:21]} {[%emt
00:11:32]} Nf6 {[%clk 00:38:22]} {[%emt 00:09:31]} 16. Nf4 {[%clk 00:21:26]}
{[%emt 00:04:25]} Qd7 {[%clk 00:36:27]} {[%emt 00:02:25]} 17. Rxf6 {[%clk
00:12:18]} {[%emt 00:09:38]} Bxf6 {[%clk 00:27:13]} {[%emt 00:09:45]} 18. Qh5+
{[%clk 00:10:23]} {[%emt 00:02:24]} Kd8 {[%clk 00:26:54]} {[%emt 00:00:48]} 19.
Nf7+ {[%clk 00:07:26]} {[%emt 00:03:27]} Kc8 {[%clk 00:27:18]} {[%emt
00:00:06]} 20. Nxh8 {[%clk 00:06:58]} {[%emt 00:00:58]} Bxd4+ {[%clk 00:21:38]}
{[%emt 00:06:10]} 21. Kh1 {[%clk 00:07:27]} {[%emt 00:00:02]} Bxh8 {[%clk
00:21:58]} {[%emt 00:00:09]} 22. Qf7 {[%clk 00:07:42]} {[%emt 00:00:16]} Qd8
{[%clk 00:22:15]} {[%emt 00:00:13]} 23. Qf5+ {[%clk 00:05:18]} {[%emt
00:02:54]} Kb8 {[%clk 00:17:07]} {[%emt 00:05:39]} 24. Be3 {[%clk 00:02:18]}
{[%emt 00:03:29]} Bf6 {[%clk 00:11:51]} {[%emt 00:05:45]} 25. Qa5 {[%clk
00:01:20]} {[%emt 00:01:29]} Qd7 {[%clk 00:09:04]} {[%emt 00:03:17]} 26. Qxb4
{[%clk 00:00:50]} {[%emt 00:01:01]} Qc6 {[%clk 00:07:57]} {[%emt 00:01:36]} 27.
Rd1 {[%clk 00:00:45]} {[%emt 00:00:35]} Ng6 {[%clk 00:07:47]} {[%emt 00:00:39]}
28. Rd2 {[%clk 00:00:53]} {[%emt 00:00:23]} Nxf4 {[%clk 00:07:59]} {[%emt
00:00:17]} 29. Qxf4 {[%clk 00:01:05]} {[%emt 00:00:18]} Qe4 {[%clk 00:08:20]}
{[%emt 00:00:09]} 30. Qg3 {[%clk 00:01:20]} {[%emt 00:00:16]} Qg6 {[%clk
00:06:33]} {[%emt 00:02:17]} 31. Qf4 {[%clk 00:01:17]} {[%emt 00:00:33]} Kc8
{[%clk 00:06:39]} {[%emt 00:00:24]} 32. b4 {[%clk 00:00:47]} {[%emt 00:01:00]}
Kd7 {[%clk 00:06:53]} {[%emt 00:00:16]} 33. Qf2 {[%clk 00:00:35]} {[%emt
00:00:42]} Rg8 {[%clk 00:07:05]} {[%emt 00:00:18]} 34. b5 {[%clk 00:00:45]}
{[%emt 00:00:22]} axb5 {[%clk 00:07:28]} {[%emt 00:00:07]} 35. axb5 {[%clk
00:00:56]} {[%emt 00:00:19]} Qh5 {[%clk 00:07:37]} {[%emt 00:00:20]} 36. Qf1
{[%clk 00:01:11]} {[%emt 00:00:15]} Bc3 {[%clk 00:07:13]} {[%emt 00:00:53]} 37.
Rf2 {[%clk 00:00:38]} {[%emt 00:01:04]} Be5 {[%clk 00:07:30]} {[%emt 00:00:14]}
0-1